Workbook

Sheet FPZ
A2: BROJČANA OZNAKA PRORAČUNSKOG KORISNIKA | B2: NAZIV PRORAČUNSKOG KORISNIKA | C2: IZVRŠENJE 2024. | D2: TEKUĆI PLAN 2025. | E2: PLAN 2026. | F2: PROJEKCIJA 2027. | G2: PROJEKCIJA 2028.
A3: 11 | B3: Opći prihodi i primici | C3: 6,699,686 | D3: 6,946,026 | E3: 7,976,670 | F3: 8,503,632 | G3: 9,062,781
A4: 31 | B4: Vlastiti prihodi | C4: 3,626,216 | D4: 3,084,116 | E4: 3,590,000 | F4: 3,690,000 | G4: 3,790,000
A5: 43 | B5: Ostali prihodi za posebne namjene | C5: 289,383 | D5: 240,083 | E5: 825,000 | F5: 850,000 | G5: 875,000
A6: 50 | B6: Pomoći iz državnog proračuna kroz opće prihode i primitke | E6: 90,000 | F6: 90,000 | G6: 90,000
A7: 51 | B7: Pomoći EU | C7: 2,156,483 | D7: 1,057,921 | E7: 846,895 | F7: 987,540 | G7: 715,000
A8: 52 | B8: Ostale pomoći | C8: 907,935 | D8: 1,064,920 | E8: 0 | F8: 0 | G8: 0
A9: 533 | B9: Ostale darovnice | C9: 0 | D9: 0 | E9: 59,360 | F9: 0 | G9: 0
A10: 61 | B10: Donacije | C10: 14,960 | D10: 20,000 | E10: 20,000 | F10: 20,000 | G10: 20,000
A11: 581 | B11: Mehanizam za oporavak i otpornost | C11: 0 | D11: 0 | E11: 334,911 | F11: 296,376 | G11: 296,376
A12: 5761 | B12: Fond solidarnosti Europske unije – potres | C12: 0 | D12: 0 | E12: 0 | F12: 0 | G12: 0
A13: 562 | B13: Kohezijski fond | C13: 20,594 | D13: 0 | E13: 0 | F13: 0 | G13: 0
A14: 563 | B14: Europski fond za regionalni razvoj (ERDF) | C14: 0 | D14: 0 | E14: 217,613 | F14: 0 | G14: 0
A15: 3705 | B15: VISOKO OBRAZOVANJE
A16: A679134 | B16: PROGRAMSKO FINANCIRANJE JAVNIH VISOKIH UČILIŠTA | C16: =C17 -> 6,699,686 | D16: =D17 -> 6,946,026 | E16: 7,976,670 | F16: 8,503,632 | G16: 9,062,781
A17: 11 | B17: Opći prihodi i primici | C17: =C18+C24 -> 6,699,686 | D17: =D18+D24 -> 6,946,026 | E17: 7,976,670 | F17: 8,503,632 | G17: 9,062,781
A18: 3 | B18: Rashodi poslovanja | C18: =C19+C20+C21+C22+C23 -> 6,625,748 | D18: =D19+D20+D21+D22+D23 -> 6,946,026 | E18: 7,880,608 | F18: 8,407,367 | G18: 8,967,227
A19: 31 | B19: Rashodi za zaposlene | C19: 6,079,298 | D19: =6382852+448174 -> 6,831,026 | E19: 6,964,616 | F19: 7,434,049 | G19: 7,934,038
A20: 32 | B20: Materijalni rashodi | C20: =123989.77+422404.5 -> 546,394 | D20: 115,000 | E20: 907,073 | F20: 963,960 | G20: 1,023,347
A21: 34 | B21: Financijski rashodi | C21: 56 | E21: 8,919 | F21: 9,358 | G21: 9,842
A22: 37 | B22: Naknade građanima i kućanstvima na temelju osiguranja i druge naknade
A23: 38 | B23: Ostali rashodi
A24: 4 | B24: Rashodi za nabavu nefinancijske imovine | C24: =C25+C26+C27 -> 73,937 | D24: =D25+D26+D27 -> 0 | E24: 96,062 | F24: 96,265 | G24: 95,554
A25: 41 | B25: Rashodi za nabavu neproizvedene dugotrajne imovine
A26: 42 | B26: Rashodi za nabavu proizvedene dugotrajne imovine | C26: 73,937 | E26: 96,062 | F26: 96,265 | G26: 95,554
A27: 45 | B27: Rashodi za dodatna ulaganja na nefinancijskoj imovini
A28: A679135 | B28: PROGRAMSKO I OSTALO FINANCIRANJE JAVNIH VISOKIH UČILIŠTA – IZ EVIDENCIJSKIH PRIHODA | C28: =C29+C38+C57+C70+C95+C46+C50+C86+C92+C82 -> 6,471,561 | D28: 4,928,271 | E28: =E29+E38+E57+E70+E95+E46+E50+E86+E92+E82 -> 5,687,403 | F28: =F29+F38+F57+F70+F95+F46+F50+F86+F92+F82 -> 5,637,540 | G28: 5,490,000
A29: 31 | B29: Vlastiti prihodi | C29: =C30+C36 -> 3,626,217 | D29: =D30+D36 -> 3,048,116 | E29: 3,590,000 | F29: 3,690,000 | G29: 3,790,000
A30: 3 | B30: Rashodi poslovanja | C30: =C31+C32+C33+C35+C34 -> 3,548,042 | D30: 3,048,116 | E30: =E31+E32+E33+E35+E34 -> 3,549,255 | F30: =F31+F32+F33+F35+F34 -> 3,648,123 | G30: 3,746,991
A31: 31 | B31: Rashodi za zaposlene | C31: =1425656.87 -> 1,425,657 | D31: 1,032,090 | E31: 1,201,382 | F31: 1,234,847 | G31: 1,268,312
A32: 32 | B32: Materijalni rashodi | C32: =2090001.8 -> 2,090,002 | D32: 1,994,390 | E32: 2,321,525 | F32: 2,386,193 | G32: 2,450,862
A33: 34 | B33: Financijski rashodi | C33: =32182.83 -> 32,183 | D33: 21,636 | E33: 25,184 | F33: 25,887 | G33: 26,588
A34: 37 | B34: Naknade građanima i kućanstvima na temelju osiguranja i druge naknade | E34: 1,164 | F34: 1,196 | G34: 1,229
A35: 38 | B35: Ostali rashodi | C35: 200
A36: 4 | B36: Rashodi za nabavu nefinancijske imovine | C36: =C37 -> 78,175 | D36: =D37 -> 0 | E36: 40,745 | F36: 41,877 | G36: 43,009
A37: 42 | B37: Rashodi za nabavu proizvedene dugotrajne imovine | C37: 78,175 | E37: 40,745 | F37: 41,877 | G37: 43,009
A38: 43 | B38: Ostali prihodi za posebne namjene | C38: =C39+C44 -> 289,383 | D38: =D39+D44 -> 236,083 | E38: 825,000 | F38: 850,000 | G38: 875,000
A39: 3 | B39: Rashodi poslovanja | C39: =C40+C41+C42+C43 -> 117,449 | D39: =D40+D41+D42+D43 -> 173,267 | E39: 753,048 | F39: 775,890 | G39: 798,667
A40: 31 | B40: Rashodi za zaposlene | C40: =87.38 -> 87 | E40: 550,000 | F40: 566,751 | G40: 583,254
A41: 32 | B41: Materijalni rashodi | C41: =117277.34 -> 117,277 | D41: 169,631 | E41: 194,302 | F41: 200,130 | G41: 206,135
A42: 34 | B42: Financijski rashodi | C42: =84.35 -> 84 | D42: 3,636 | E42: 8,746 | F42: 9,009 | G42: 9,278
A43: 37 | B43: Naknade građanima i kućanstvima na temelju osiguranja i druge naknade
A44: 4 | B44: Rashodi za nabavu nefinancijske imovine | C44: =C45 -> 171,934 | D44: =D45 -> 62,816 | E44: 71,952 | F44: 74,110 | G44: 76,333
A45: 42 | B45: Rashodi za nabavu proizvedene dugotrajne imovine | C45: =171934.39 -> 171,934 | D45: 62,816 | E45: 71,952 | F45: 74,110 | G45: 76,333
A46: 5011 | B46: Programi Unije | C46: =C47 -> 0 | D46: 0 | E46: =E47 -> 90,000 | F46: =F47 -> 90,000 | G46: 90,000
A47: 3 | B47: Rashodi poslovanja | C47: =C48+C49 -> 0 | D47: 0 | E47: =E48+E49 -> 90,000 | F47: =F48+F49 -> 90,000 | G47: 90,000
A48: 31 | B48: Rashodi za zaposlene | E48: 90,000 | F48: 90,000 | G48: 90,000
A49: 32 | B49: Materijalni rashodi
A50: 5100 | B50: Programi Unije | C50: =C51+C55 -> 0 | D50: =D51+D55 -> 0 | E50: 846,895 | F50: 987,540 | G50: 715,000
A51: 3 | B51: Rashodi poslovanja | C51: =C52+C53+C54 -> 0 | D51: =D52+D53+D54 -> 0 | E51: 845,434 | F51: 983,772 | G51: 710,790
A52: 31 | B52: Rashodi za zaposlene | E52: 636,898 | F52: 692,010 | G52: 511,433
A53: 32 | B53: Materijalni rashodi | E53: 208,463 | F53: 291,574 | G53: 199,147
A54: 34 | B54: Financijski rashodi | E54: 73 | F54: 188 | G54: 210
A55: 4 | B55: Rashodi za nabavu nefinancijske imovine | C55: =C56 -> 0 | D55: =D56 -> 0 | E55: 1,461 | F55: 3,768 | G55: 4,210
A56: 42 | B56: Rashodi za nabavu proizvedene dugotrajne imovine | E56: 1,461 | F56: 3,768 | G56: 4,210
A57: 51 | B57: Pomoći EU | C57: =C58+C66 -> 1,753,517 | D57: =D58+D66 -> 1,057,921 | E57: 0 | F57: 0 | G57: 0
A58: 3 | B58: Rashodi poslovanja | C58: =SUM(C59:C65) -> 1,688,631 | D58: =SUM(D59:D65) -> 904,171 | E58: 0 | F58: 0 | G58: 0
A59: 31 | B59: Rashodi za zaposlene | C59: =195601.58+86676.23 -> 282,278 | D59: 712,383
A60: 32 | B60: Materijalni rashodi | C60: =1401001.75+4372.6 -> 1,405,374 | D60: 191,788
A61: 34 | B61: Financijski rashodi | C61: =235.43+666.97 -> 902
A62: 35 | B62: Subvencije
A63: 36 | B63: Pomoći dane u inozemstvo i unutar općeg proračuna | C63: =76.21 -> 76
A64: 37 | B64: Naknade građanima i kućanstvima na temelju osiguranja i druge naknade
A65: 38 | B65: Ostali rashodi
A66: 4 | B66: Rashodi za nabavu nefinancijske imovine | C66: =C67+C68+C69 -> 64,886 | D66: =D67+D68+D69 -> 153,750 | E66: 0 | F66: 0 | G66: 0
A67: 41 | B67: Rashodi za nabavu neproizvedene dugotrajne imovine
A68: 42 | B68: Rashodi za nabavu proizvedene dugotrajne imovine | C68: 64,886 | D68: 153,750
A69: 45 | B69: Rashodi za dodatna ulaganja na nefinancijskoj imovini
A70: 52 | B70: Ostale pomoći | C70: =C71+C78 -> 802,443 | D70: =D71+D78 -> 566,151 | E70: 0 | F70: 0 | G70: 0
A71: 3 | B71: Rashodi poslovanja | C71: =C72+C73+C74+C75+C76+C77 -> 718,195 | D71: =D72+D73+D74+D75+D76+D77 -> 564,151 | E71: 0 | F71: 0 | G71: 0
A72: 31 | B72: Rashodi za zaposlene | C72: =25327.51+212546.64 -> 237,874 | D72: 441,440
A73: 32 | B73: Materijalni rashodi | C73: =449006.98 -> 449,007 | D73: 122,611
A74: 34 | B74: Financijski rashodi | C74: =352.47 -> 352 | D74: 100
A75: 36 | B75: Pomoći dane u inozemstvo i unutar općeg proračuna | C75: =29411.43 -> 29,411
A76: 37 | B76: Naknade građanima i kućanstvima na temelju osiguranja i druge naknade | C76: =1550 -> 1,550
A77: 38 | B77: Ostali rashodi
A78: 4 | B78: Rashodi za nabavu nefinancijske imovine | C78: =C79+C80+C81 -> 84,248 | D78: =D79+D80+D81 -> 2,000 | E78: 0 | F78: 0 | G78: 0
A79: 41 | B79: Rashodi za nabavu neproizvedene dugotrajne imovine
A80: 42 | B80: Rashodi za nabavu proizvedene dugotrajne imovine | C80: =84248.13 -> 84,248 | D80: 2,000
A81: 45 | B81: Rashodi za dodatna ulaganja na nefinancijskoj imovini
A82: 533 | C82: =C83 -> 0 | D82: =D83 -> 0 | E82: 59,360 | F82: 0 | G82: 0
A83: 3 | B83: Rashodi poslovanja | C83: =C84+C85+C111 -> 0 | D83: =D84+D85+D111 -> 0 | E83: =E84+E85+E111 -> 59,360 | F83: =F84+F85+F111 -> 0 | G83: =G84+G85+G111 -> 0
A84: 31 | B84: Rashodi za zaposlene | E84: 58,360
A85: 32 | B85: Materijalni rashodi | E85: 1,000
A86: 563 | B86: Europski fond za regionalni razvoj (EFRR | C86: =C87 -> 0 | D86: =D87 -> 0 | E86: 217,613 | F86: 0 | G86: 0
A87: 3 | B87: Rashodi poslovanja | C87: =C88+C89+C90+C91 -> 0 | D87: =D88+D89+D90+D91 -> 0 | E87: 217,613 | F87: 0 | G87: 0
A88: 31 | B88: Rashodi za zaposlene | E88: 37,899 | F88: 0 | G88: 0
A89: 32 | B89: Materijalni rashodi | E89: 145,222 | F89: 0 | G89: 0
A90: 34 | B90: Financijski rashodi | E90: 240 | F90: 0 | G90: 0
A91: 36 | B91: Pomoći dane u inozemstvo i unutar općeg proračuna | E91: 34,252 | F91: 0 | G91: 0
A92: 581 | B92: Europski fond za regionalni razvoj (EFRR | C92: =C93+C109 -> 0 | D92: =D93+D109 -> 0 | E92: =E93 -> 38,535 | F92: =F93 -> 0 | G92: 0
A93: 3 | B93: Rashodi poslovanja | C93: =C94+C108 -> 0 | D93: =D94+D108 -> 0 | E93: =E94 -> 38,535 | F93: =F94 -> 0 | G93: 0
A94: 31 | B94: Rashodi za zaposlene | E94: 38,535
A95: 61 | B95: Donacije | C95: =C96+C100 -> 0 | D95: =D96+D100 -> 20,000 | E95: 20,000 | F95: 20,000 | G95: 20,000
A96: 3 | B96: Rashodi poslovanja | C96: =C97+C98+C99 -> 0 | D96: =D97+D98+D99 -> 20,000 | E96: 20,000 | F96: 20,000 | G96: 20,000
A97: 31 | B97: Rashodi za zaposlene
A98: 32 | B98: Materijalni rashodi | D98: 20,000 | E98: 20,000 | F98: 20,000 | G98: 20,000
A99: 34 | B99: Financijski rashodi | C99: 0
A100: 4 | B100: Rashodi za nabavu nefinancijske imovine | C100: =C101+C102+C103 -> 0 | D100: =D101+D102+D103 -> 0 | E100: 0 | F100: 0 | G100: 0
A101: 41 | B101: Rashodi za nabavu neproizvedene dugotrajne imovine
A102: 42 | B102: Rashodi za nabavu proizvedene dugotrajne imovine
A103: 45 | B103: Rashodi za dodatna ulaganja na nefinancijskoj imovini
A104: A679136 | B104: RAZVOJ SUSTAVA PROGRAMSKIH SPORAZUMA ZA FINANCIRANJE SVEUČILIŠTA I ZNANSTVENIH INSTITUTA USMJERENIH NA INOVACIJE, ISTRAŽIVANJE I RAZVOJ - NPOO (C3.2. R1-I1 ) | C104: =C105 -> 0 | D104: 0 | E104: =E105 -> 296,371 | F104: =F105 -> 296,371 | G104: 125,622
A105: 581 | B105: Europski fond za regionalni razvoj (EFRR | C105: =C106+C109 -> 0 | D105: =D106+D109 -> 0 | E105: =E106+E109 -> 296,371 | F105: =F106+F109 -> 296,371 | G105: 125,622
A106: 3 | B106: Rashodi poslovanja | C106: =C107+C95 -> 0 | D106: =D107+D108 -> 0 | E106: =E107+E108 -> 190,749 | F106: =F107+F108 -> 190,749 | G106: =G107+G95 -> 20,000
A107: 31 | B107: Rashodi za zaposlene
A108: 32 | B108: Materijalni rashodi | E108: 190,749 | F108: 190,749 | G108: 190,749
A109: 4 | B109: Rashodi za nabavu nefinancijske imovine | C109: =C110 -> 0 | D109: =D110 -> 0 | E109: 105,622 | F109: 105,622 | G109: 105,622
A110: 42 | B110: Rashodi za nabavu proizvedene dugotrajne imovine | E110: 105,622 | F110: 105,622 | G110: 105,622
A111: K679084 | B111: OP KONKURENTNOST I KOHEZIJA 2014.-2020., PRIORITET 1, 9 i 10
A112: 563 | B112: Europski fond za regionalni razvoj (EFRR | C112: =C113+C120 -> 118,048 | D112: =D113+D120 -> 0 | E112: 0 | F112: 0 | G112: 0
A113: 3 | B113: Rashodi poslovanja | C113: =C114+C115+C116+C117+C118+C119 -> 117,325 | D113: =D114+D115+D116+D117+D118+D119 -> 0 | E113: 0 | F113: 0 | G113: 0
A114: 31 | B114: Rashodi za zaposlene
A115: 32 | B115: Materijalni rashodi | C115: =117313.97 -> 117,314
A116: 34 | B116: Financijski rashodi | C116: 11
A117: 35 | B117: Subvencije
A118: 36 | B118: Pomoći dane u inozemstvo i unutar općeg proračuna
A119: 38 | B119: Ostali rashodi
A120: 4 | B120: Rashodi za nabavu nefinancijske imovine | C120: =C121 -> 724 | D120: =D121 -> 0 | E120: 0 | F120: 0 | G120: 0
A121: 42 | B121: Rashodi za nabavu proizvedene dugotrajne imovine | C121: 724
